fUSD/lending_fUSD_20240121
["ID","MTS","AMOUNT","RATE_DAILY","PERIOD"]
[312405006,1705858385611,-500.0,0.00045479,31]
[312405007,1705858385621,-500.0,0.00045479,31]
[312405008,1705858385631,-730.53,0.00045479,31]
[312405009,1705858385642,-500.0,0.00045479,31]
[312405010,1705858385652,-500.0,0.00045479,31]
[312405011,1705858385662,-500.0,0.00045479,31]
[312405012,1705858385672,-639.15,0.00045479,31]
[312405013,1705858385682,-500.0,0.00045479,31]
[312405014,1705858385693,-500.0,0.00045479,31]
[312405015,1705858385702,-683.37,0.00045479,31]
[312405016,1705858385712,-713.6,0.00045479,31]
[312405017,1705858385722,-522.29,0.00045479,31]
[312405018,1705858385732,-1341.01,0.00045479,31]
[312405019,1705858385742,-500.0,0.00045479,31]
[312405020,1705858385752,-815.74,0.00045479,31]
[312405021,1705858385762,-500.0,0.00045479,31]
[312405022,1705858385774,-908.38,0.00045479,31]
[312405023,1705858385784,-500.0,0.00045479,31]
[312405024,1705858385793,-844.72,0.00045479,31]
[312405025,1705858385803,-500.0,0.00045479,31]
[312405026,1705858385813,-798.26,0.00045479,31]
[312405027,1705858385823,-625.99,0.00045479,31]
[312405028,1705858385833,-944.0,0.00045479,31]
[312405029,1705858385844,-1236.84,0.00045479,31]
[312405030,1705858385854,-772.74,0.00045479,31]
[312405031,1705858385865,-500.0,0.00045479,31]
[312405032,1705858385874,-674.68,0.00045479,31]
[312405033,1705858385884,-677.86,0.00045479,31]
[312405034,1705858385894,-1386.82,0.00045479,31]
[312405035,1705858385904,-575.35,0.00045479,2]
[312405036,1705858385914,-546.59,0.00045479,31]
[312405037,1705858385923,-500.0,0.00045479,31]
[312405038,1705858385933,-1093.4,0.00045479,31]
[312405039,1705858385942,-876.12,0.00045479,31]
[312405040,1705858385953,-1506.33,0.00045479,31]
[312405041,1705858385963,-563.22,0.00045479,31]
[312405042,1705858385973,-775.99,0.00045479,31]
[312405043,1705858385983,-1359.97,0.00045479,31]
[312405044,1705858385993,-500.0,0.00045479,31]
[312405045,1705858386003,-1846.34,0.00045479,31]
[312405046,1705858386012,-706.97,0.00045479,31]
[312405047,1705858386023,-500.0,0.00045479,31]
[312405048,1705858386034,-827.05,0.00045479,31]
[312405049,1705858386043,-500.0,0.00045479,31]
[312405050,1705858386054,-736.6,0.00045479,31]
[312405051,1705858386064,-1026.28,0.00045479,31]
[312405052,1705858386074,-1358.53,0.00045479,31]
[312405053,1705858386088,-1261.93,0.00045479,31]
[312405054,1705858386098,-462.56069748,0.00045479,31]
[312405055,1705858386107,-500.0,0.00045479,7]
[312405056,1705858386117,-1103.53,0.00045479,31]
[312405057,1705858386126,-800.0,0.00045479,30]
[312405058,1705858386135,-500.0,0.00045479,31]
[312405059,1705858386144,-557.3,0.00045479,31]
[312405060,1705858386154,-568.36,0.00045479,31]
[312405061,1705858386164,-773.33,0.00045479,31]
[312405062,1705858386175,-1341.32,0.00045479,31]
[312405063,1705858386184,-500.0,0.00045479,31]
[312405064,1705858386195,-532.88,0.00045479,31]
[312405065,1705858386205,-500.0,0.00045479,31]
[312405066,1705858386214,-948.55,0.00045479,31]
[312405067,1705858386223,-500.0,0.00045479,31]
[312405068,1705858386233,-500.0,0.00045479,31]
[312405069,1705858386242,-500.0,0.00045479,31]
[312405070,1705858386251,-521.30768344,0.00045479,31]
[312405071,1705858386260,-713.94,0.00045479,31]
[312405072,1705858386271,-500.0,0.00045479,31]
[312405073,1705858386280,-1009.22,0.00045479,31]
[312405074,1705858386289,-542.43,0.00045479,31]
[312405075,1705858386299,-500.0,0.00045479,31]
[312405076,1705858386307,-500.0,0.00045479,31]
[312405077,1705858386317,-500.0,0.00045479,31]
[312405078,1705858386326,-500.0,0.00045479,31]
[312405079,1705858386335,-1020.8,0.00045479,31]
[312405080,1705858386344,-500.0,0.00045479,31]
[312405081,1705858386354,-674.71,0.00045479,31]
[312405082,1705858386366,-907.75,0.00045479,31]
[312405083,1705858386375,-2628.29,0.00045479,7]
[312405084,1705858386385,-500.0,0.00045479,31]
[312405085,1705858386394,-500.0,0.00045479,31]
[312405086,1705858386404,-500.0,0.00045479,31]
[312405087,1705858386414,-500.0,0.00045479,31]
[312405088,1705858386423,-726.92,0.00045479,31]
[312405089,1705858386433,-802.51,0.00045479,31]
[312405090,1705858386442,-500.0,0.00045479,31]
[312405091,1705858386452,-919.56,0.00045479,31]
[312405092,1705858386462,-3326.6,0.00045479,31]
[312405093,1705858386471,-500.0,0.00045479,31]
[312405094,1705858386481,-604.37,0.00045479,31]
[312405095,1705858386491,-563.35,0.00045479,31]
[312405096,1705858386500,-500.0,0.00045479,31]
[312405097,1705858386510,-500.0,0.00045479,31]
[312405098,1705858386520,-920.57,0.00045479,31]
[312405099,1705858386529,-719.21,0.00045479,31]
[312405100,1705858386539,-973.6,0.00045479,31]
[312405101,1705858386549,-642.1,0.00045479,31]
[312405102,1705858386559,-814.86,0.00045479,31]
[312405103,1705858386569,-1551.87,0.00045479,31]
[312405104,1705858386578,-549.52,0.00045479,31]
[312405105,1705858386587,-500.0,0.00045479,7]
[312405106,1705858386597,-500.0,0.00045479,31]
[312405107,1705858386606,-4046.77,0.00045479,31]
[312405108,1705858386616,-500.0,0.00045479,31]
[312405109,1705858386625,-695.82,0.00045479,31]
[312405110,1705858386634,-769.33,0.00045479,31]
[312405111,1705858386643,-700.79,0.00045479,31]
[312405112,1705858386653,-500.0,0.00045479,31]
[312405113,1705858386662,-745.29,0.00045479,31]
[312405114,1705858386671,-7045.39,0.00045479,31]
[312405115,1705858386681,-1262.27,0.00045479,31]
[312405116,1705858386690,-519.48347963,0.00045479,31]
[312405117,1705858386700,-690.37,0.00045479,31]
[312405118,1705858386709,-520.83,0.00045479,31]
[312405119,1705858386718,-500.0,0.00045479,31]
[312405120,1705858386727,-757.17,0.00045479,31]
[312405121,1705858386737,-5696.35,0.00045479,31]
[312405122,1705858386746,-353.81,0.00045479,31]
[312405123,1705858386755,-1837.87,0.00045479,31]
[312405124,1705858386765,-500.0,0.00045479,31]
[312405125,1705858386774,-908.52,0.00045479,31]
[312405126,1705858386783,-500.0,0.00045479,31]
[312405127,1705858386793,-9649.82,0.00045479,31]
[312405128,1705858386803,-1916.53,0.00045479,31]
[312405129,1705858386813,-268.60771167,0.00045479,31]
[312405130,1705858386823,-1240.43,0.00045479,31]
[312405131,1705858386833,-695.14,0.00045479,31]
[312405132,1705858386842,-500.0,0.00045479,31]
[312405133,1705858386852,-500.0,0.00045479,31]
[312405134,1705858386862,-1114.6,0.00045479,31]
[312405135,1705858386870,-1341.69,0.00045479,31]
[312405136,1705858386880,-921.33,0.00045479,31]
[312405137,1705858386889,-1113.57,0.00045479,31]
[312405138,1705858386899,-5530.48,0.00045479,31]
[312405139,1705858386909,-793.66,0.00045479,31]
[312405140,1705858386919,-500.0,0.00045479,31]
[312405141,1705858386929,-795.91,0.00045479,31]
[312405142,1705858386939,-500.0,0.00045479,31]
[312405143,1705858386948,-500.0,0.00045479,31]
[312405144,1705858386958,-1440.05,0.00045479,31]
[312405145,1705858386967,-2092.99,0.00045479,31]
[312405146,1705858386977,-3700.14,0.00045479,31]
[312405147,1705858386986,-1000.0,0.00045479,2]
[312405148,1705858386996,-745.1,0.00045479,31]
[312405149,1705858387005,-10145.93,0.00045479,31]
[312405150,1705858387015,-1414.9,0.00045479,31]
[312405151,1705858387025,-505.43,0.00045479,31]
[312405152,1705858387035,-521.95,0.00045479,31]
[312405153,1705858387045,-680.26,0.00045479,5]
[312405154,1705858387055,-500.0,0.00045479,31]
[312405155,1705858387065,-909.92,0.00045479,31]
[312405156,1705858387075,-647.36,0.00045479,31]
[312405157,1705858387086,-969.71,0.00045479,31]
[312405158,1705858387097,-4142.89,0.00045479,31]
[312405159,1705858387107,-500.0,0.00045479,31]
[312405160,1705858387117,-816.06,0.00045479,31]
[312405161,1705858387127,-500.0,0.00045479,31]
[312405162,1705858387136,-500.0,0.00045479,31]
[312405163,1705858387146,-2663.37,0.00045479,31]
[312405164,1705858387155,-500.0,0.00045479,31]
[312405165,1705858387165,-696.72,0.00045479,31]
[312405166,1705858387175,-525.38,0.00045479,31]
[312405167,1705858387294,-764.09,0.00045479,31]
[312405168,1705858387305,-500.0,0.00045479,31]
[312405169,1705858387315,-1574.71,0.00045479,31]
[312405170,1705858387324,-500.0,0.00045479,31]
[312405171,1705858387334,-9891.3,0.00045479,31]
[312405172,1705858387343,-932.94,0.00045479,31]
[312405173,1705858387352,-831.28,0.00045479,31]
[312405174,1705858387361,-500.0,0.00045479,31]
[312405175,1705858387370,-1364.93,0.00045479,31]
[312405176,1705858387379,-3404.67,0.00045479,31]
[312405177,1705858387389,-2645.34,0.00045479,31]
[312405178,1705858387398,-735.01,0.00045479,31]
[312405179,1705858387407,-519.75567137,0.00045479,31]
[312405180,1705858387417,-500.0,0.00045479,31]
[312405181,1705858387426,-5145.07,0.00045479,31]
[312405182,1705858387435,-1174.77,0.00045479,31]
[312405183,1705858387444,-500.0,0.00045479,31]
[312405184,1705858387454,-738.19,0.00045479,31]
[312405185,1705858387463,-14562.01,0.00045479,31]
[312405186,1705858387471,-944.69,0.00045479,31]
[312405187,1705858387480,-1080.05,0.00045479,31]
[312405188,1705858387489,-1450.35,0.00045479,31]
[312405189,1705858387499,-653.64,0.00045479,31]
[312405190,1705858387508,-500.0,0.00045479,31]
[312405191,1705858387517,-500.0,0.00045479,31]
[312405192,1705858387527,-38083.32,0.00045479,31]
[312405193,1705858387536,-772.68,0.00045479,31]
[312405194,1705858387546,-9951.76,0.00045479,31]
[312405195,1705858387555,-996.84,0.00045479,31]
[312405196,1705858387565,-526.57,0.00045479,31]
[312405197,1705858387575,-500.0,0.00045479,31]
[312405198,1705858387584,-1180.64,0.00045479,31]
[312405199,1705858387594,-13566.67,0.00045479,31]
[312405200,1705858387604,-2702.04,0.00045479,31]
[312405201,1705858387614,-2370.4,0.00045479,31]
[312405202,1705858387623,-710.24,0.00045479,31]
[312405203,1705858387632,-500.0,0.00045479,31]
[312405204,1705858387642,-841.85,0.00045479,31]
[312405205,1705858387652,-650.75,0.00045479,31]
[312405206,1705858387662,-500.0,0.00045479,31]
[312405207,1705858387672,-891.39,0.00045479,31]
[312405208,1705858387681,-500.0,0.00045479,31]
[312405209,1705858387691,-1402.11,0.00045479,31]
[312405210,1705858387699,-500.0,0.00045479,31]
[312405211,1705858387708,-5635.24,0.00045479,31]
[312405212,1705858387718,-500.0,0.00045479,31]
[312405213,1705858387727,-500.0,0.00045479,31]
[312405214,1705858387736,-500.0,0.00045479,31]
[312405215,1705858387745,-2410.09,0.00045479,31]
[312405216,1705858387755,-500.0,0.00045479,30]
[312405217,1705858387764,-1587.22,0.00045479,31]
[312405218,1705858387775,-500.0,0.00045479,31]
[312405219,1705858387785,-2811.02,0.00045479,31]
[312405220,1705858387794,-500.0,0.00045479,31]
[312405221,1705858387803,-1486.68,0.00045479,31]
[312405222,1705858387812,-1020.67,0.00045479,31]
[312405223,1705858387821,-766.24,0.00045479,31]
[312405224,1705858387830,-500.0,0.00045479,31]
[312405225,1705858387839,-500.0,0.00045479,31]
[312405226,1705858387849,-500.0,0.00045479,31]
[312405227,1705858387859,-4475.3,0.00045479,31]
[312405228,1705858387868,-678.56,0.00045479,31]
[312405229,1705858387878,-4341.11,0.00045479,31]
[312405230,1705858387887,-500.0,0.00045479,31]
[312405231,1705858387897,-500.0,0.00045479,31]
[312405232,1705858387907,-893.6,0.00045479,31]
[312405233,1705858387915,-500.0,0.00045479,31]
[312405234,1705858387925,-1312.71,0.00045479,31]
[312405235,1705858387935,-718.8,0.00045479,31]
[312405236,1705858387945,-500.0,0.00045479,31]
[312405237,1705858387954,-1879.16,0.00045479,31]
[312405238,1705858387963,-512.71,0.00045479,31]
[312405239,1705858387973,-843.82,0.00045479,31]
[312405240,1705858387983,-1267.64,0.00045479,31]
[312405241,1705858387992,-808.75,0.00045479,31]
[312405242,1705858388002,-586.73,0.00045479,31]
[312405243,1705858388011,-1163.91,0.00045479,31]
[312405244,1705858388023,-2402.4,0.00045479,31]
[312405245,1705858388032,-500.0,0.00045479,31]
[312405246,1705858388042,-401.32220683,0.00045479,31]
[312405247,1705858388051,-500.0,0.00045479,31]
[312405248,1705858388061,-1028.17,0.00045479,31]
[312405249,1705858388070,-767.97,0.00045479,31]
[312405250,1705858388080,-822.33,0.00045479,31]
[312405251,1705858388095,-1331.9,0.00045479,31]
[312405252,1705858388104,-1231.24,0.00045479,31]
[312405253,1705858388113,-500.0,0.00045479,31]
[312405254,1705858388123,-951.78,0.00045479,31]
[312405255,1705858388132,-673.38,0.00045479,31]
[312405256,1705858388142,-623.65,0.00045479,31]
[312405257,1705858388151,-4814.61,0.00045479,31]
[312405258,1705858388161,-2661.69,0.00045479,31]
[312405259,1705858388171,-2221.22,0.00045479,31]
[312405260,1705858388181,-1307.43,0.00045479,31]
[312405261,1705858388190,-1998.1,0.00045479,31]
[312405262,1705858388199,-2919.4,0.00045479,31]
[312405263,1705858388209,-500.0,0.00045479,31]
[312405264,1705858388218,-4554.17,0.00045479,31]
[312405265,1705858388228,-1516.66,0.00045479,31]
[312405266,1705858388237,-1723.52,0.00045479,31]
[312405267,1705858388246,-500.0,0.00045479,31]
[312405268,1705858388256,-500.0,0.00045479,31]
[312405269,1705858388266,-715.12,0.00045479,31]
[312405270,1705858388276,-966.48,0.00045479,31]
[312405271,1705858388285,-1024.58,0.00045479,31]
[312405272,1705858388294,-1352.25,0.00045479,31]
[312405273,1705858388304,-500.0,0.00045479,31]
[312405274,1705858388313,-15221.27,0.00045479,31]
[312405275,1705858388322,-1317.11,0.00045479,31]
[312405276,1705858388330,-500.0,0.00045479,31]
[312405277,1705858388340,-801.04,0.00045479,31]
[312405278,1705858388349,-719.66,0.00045479,31]
[312405279,1705858388358,-1102.3,0.00045479,31]
[312405280,1705858388367,-2398.67,0.00045479,31]
[312405281,1705858388376,-11755.0,0.00045479,31]
[312405282,1705858388386,-500.0,0.00045479,31]
[312405283,1705858388395,-2450.04,0.00045479,31]
[312405284,1705858388404,-500.0,0.00045479,31]
[312405285,1705858388413,-580.18,0.00045479,31]
[312405286,1705858388423,-500.0,0.00045479,31]
[312405287,1705858388432,-500.0,0.00045479,31]
[312405288,1705858388442,-6029.9,0.00045479,31]
[312405289,1705858388451,-500.0,0.00045479,31]
[312405290,1705858388460,-4782.28,0.00045479,31]
[312405291,1705858388469,-747.5,0.00045479,31]
[312405292,1705858388478,-1275.11,0.00045479,31]
[312405293,1705858388487,-633.63,0.00045479,31]
[312405294,1705858388496,-1385.95,0.00045479,31]
[312405295,1705858388505,-838.42,0.00045479,31]
[312405296,1705858388514,-1278.23,0.00045479,31]
[312405297,1705858388524,-500.0,0.00045479,31]
[312405298,1705858388533,-659.66,0.00045479,31]
[312405299,1705858388542,-2022.75,0.00045479,31]
[312405300,1705858388552,-848.6,0.00045479,31]
[312405301,1705858388561,-3652.55,0.00045479,31]
[312405302,1705858388570,-3523.18,0.00045479,31]
[312405303,1705858388579,-718.17,0.00045479,31]
[312405304,1705858388589,-898.33,0.00045479,31]
[312405305,1705858388598,-500.0,0.00045479,31]
[312405306,1705858388607,-6799.03,0.00045479,31]
[312405307,1705858388616,-1141.22,0.00045479,31]
[312405308,1705858388625,-1741.89,0.00045479,31]
[312405309,1705858388634,-1623.13,0.00045479,31]
[312405310,1705858388643,-500.0,0.00045479,31]
[312405311,1705858388653,-2338.74,0.00045479,31]
[312405312,1705858388662,-569.27,0.00045479,31]
[312405313,1705858388671,-1004.91,0.00045479,31]
[312405314,1705858388681,-771.85,0.00045479,31]
[312405315,1705858388690,-599.51,0.00045479,31]
[312405316,1705858388699,-683.46,0.00045479,31]
[312405317,1705858388708,-1665.32,0.00045479,31]
[312405318,1705858388717,-1953.86,0.00045479,31]
[312405319,1705858388726,-500.0,0.00045479,31]
[312405320,1705858388735,-1307.02,0.00045479,31]
[312405321,1705858388744,-2015.53,0.00045479,31]
[312405322,1705858388753,-1641.41,0.00045479,31]
[312405323,1705858388762,-1542.52,0.00045479,31]
[312405324,1705858388772,-1132.72,0.00045479,31]
[312405325,1705858388781,-333.86,0.00045479,31]
[312405326,1705858388790,-536.23,0.00045479,31]
[312405327,1705858388798,-500.0,0.00045479,7]
[312405328,1705858388808,-500.0,0.00045479,31]
[312405329,1705858388817,-500.0,0.00045479,31]
[312405330,1705858388826,-500.0,0.00045479,31]
[312405331,1705858388835,-860.42,0.00045479,31]
[312405332,1705858388845,-639.35,0.00045479,31]
[312405333,1705858388854,-500.0,0.00045479,31]
[312405334,1705858388864,-529.07,0.00045479,31]
[312405335,1705858388873,-500.0,0.00045479,31]
[312405336,1705858388882,-1102.2,0.00045479,31]
[312405337,1705858388892,-2003.86,0.00045479,31]
[312405338,1705858388901,-500.0,0.00045479,5]
[312405339,1705858388909,-2129.93,0.00045479,31]
[312405340,1705858388918,-971.37,0.00045479,31]
[312405341,1705858388928,-500.0,0.00045479,31]
[312405342,1705858388937,-1208.05,0.00045479,31]
[312405343,1705858388946,-3628.57,0.00045479,31]
[312405344,1705858388955,-4143.87,0.00045479,31]
[312405345,1705858388965,-563.17,0.00045479,31]
[312405346,1705858388974,-8492.56,0.00045479,31]
[312405347,1705858388983,-3744.16,0.00045479,31]
[312405348,1705858388992,-555.83,0.00045479,10]
[312405349,1705858389001,-2561.14,0.00045479,31]
[312405350,1705858389011,-500.0,0.00045479,31]
[312405351,1705858389021,-1207.99,0.00045479,31]
[312405352,1705858389032,-1944.17,0.00045479,31]
[312405353,1705858389041,-1152.01,0.00045479,31]
[312405354,1705858389051,-688.17,0.00045479,31]
[312405355,1705858389060,-766.84,0.00045479,31]
[312405356,1705858389070,-726.63,0.00045479,31]
[312405357,1705858389083,-500.0,0.00045479,31]
[312405358,1705858389093,-4478.54,0.00045479,31]
[312405359,1705858389102,-1741.83,0.00045479,31]
[312405360,1705858389110,-4116.72,0.00045479,31]
[312405361,1705858389119,-2317.89,0.00045479,31]
[312405362,1705858389129,-719.71,0.00045479,31]
[312405363,1705858389139,-778.89,0.00045479,31]
[312405364,1705858389148,-17414.88,0.00045479,31]
[312405365,1705858389159,-1683.36,0.00045479,31]
[312405366,1705858389169,-1457.58,0.00045479,31]
[312405367,1705858389178,-506.89,0.00045479,31]
[312405368,1705858389187,-585.2,0.00045479,31]
[312405369,1705858389196,-712.61,0.00045479,31]
[312405370,1705858389205,-777.78,0.00045479,31]
[312405371,1705858389214,-1992.63,0.00045479,31]
[312405372,1705858389223,-1297.78,0.00045479,31]
[312405373,1705858389232,-1673.34,0.00045479,31]
[312405374,1705858389242,-500.0,0.00045479,2]
[312405375,1705858389251,-1276.24,0.00045479,31]
[312405376,1705858389260,-676.02,0.00045479,31]
[312405377,1705858389270,-1515.16,0.00045479,31]
[312405378,1705858389278,-519.99,0.00045479,31]
[312405379,1705858389288,-832.1,0.00045479,31]
[312405380,1705858389297,-500.0,0.00045479,31]
[312405381,1705858389306,-1114.3,0.00045479,31]
[312405382,1705858389315,-559.3,0.00045479,31]
[312405383,1705858389325,-617.68,0.00045479,31]
[312405384,1705858389333,-4316.85,0.00045479,31]
[312405385,1705858389342,-698.31,0.00045479,31]
[312405386,1705858389352,-500.0,0.00045479,31]
[312405387,1705858389361,-15611.05,0.00045479,31]
[312405388,1705858389370,-1105.83,0.00045479,31]
[312405389,1705858389379,-500.0,0.00045479,31]
[312405390,1705858389388,-500.0,0.00045479,31]
[312405391,1705858389397,-758.0,0.00045479,31]
[312405392,1705858389407,-578.73,0.00045479,31]
[312405393,1705858389417,-500.0,0.00045479,31]
[312405394,1705858389427,-3781.38,0.00045479,31]
[312405395,1705858389437,-570.79,0.00045479,31]
[312405396,1705858389447,-5511.39,0.00045479,31]
[312405397,1705858389456,-1000.0,0.00045479,30]
[312405398,1705858389467,-1748.73,0.00045479,31]
[312405399,1705858389476,-1977.31,0.00045479,31]
[312405400,1705858389485,-272.44299614,0.00045479,31]
[312405401,1705858389494,-500.0,0.00045479,31]
[312405402,1705858389504,-997.22,0.00045479,31]
[312405403,1705858389514,-682.73,0.00045479,31]
[312405404,1705858389525,-1819.37,0.00045479,31]
[312405405,1705858389534,-908.78,0.00045479,31]
[312405406,1705858389545,-915.75,0.00045479,31]
[312405407,1705858389554,-537.99,0.00045479,30]
[312405408,1705858389564,-1258.24,0.00045479,31]
[312405409,1705858389573,-1270.4,0.00045479,31]
[312405410,1705858389582,-1625.11,0.00045479,31]
[312405411,1705858389592,-2077.28,0.00045479,31]
[312405412,1705858389601,-500.0,0.00045479,31]
[312405413,1705858389611,-500.0,0.00045479,31]
[312405414,1705858389620,-1216.0,0.00045479,31]
[312405415,1705858389629,-2480.88,0.00045479,31]
[312405416,1705858389639,-2428.09,0.00045479,31]
[312405417,1705858389648,-500.0,0.00045479,31]
[312405418,1705858389657,-940.03,0.00045479,31]
[312405419,1705858389666,-742.17,0.00045479,31]
[312405420,1705858389675,-2895.16,0.00045479,31]
[312405421,1705858389684,-638.01,0.00045479,31]
[312405422,1705858389693,-535.95916397,0.00045479,2]
[312405423,1705858389703,-958.94,0.00045479,31]
[312405424,1705858389713,-653.31,0.00045479,31]
[312405425,1705858389722,-3096.04,0.00045479,31]
[312405426,1705858389731,-2622.21,0.00045479,31]
[312405427,1705858389740,-1315.5,0.00045479,31]
[312405428,1705858389750,-906.52,0.00045479,31]
[312405429,1705858389760,-539.71,0.00045479,31]
[312405430,1705858389770,-1262.2,0.00045479,31]
[312405431,1705858389779,-2322.86,0.00045479,31]
[312405432,1705858389789,-1416.87,0.00045479,31]
[312405433,1705858389799,-1205.84,0.00045479,31]
[312405434,1705858389808,-625.74,0.00045479,31]
[312405435,1705858389817,-4179.57,0.00045479,31]
[312405436,1705858389827,-992.96,0.00045479,31]
[312405437,1705858389836,-500.0,0.00045479,31]
[312405438,1705858389846,-815.51,0.00045479,31]
[312405439,1705858389855,-500.0,0.00045479,31]
[312405440,1705858389865,-547.37,0.00045479,2]
[312405441,1705858389875,-500.0,0.00045479,31]
[312405442,1705858389885,-500.0,0.00045479,31]
[312405443,1705858389894,-500.0,0.00045479,31]
[312405444,1705858389904,-1425.95,0.00045479,31]
[312405445,1705858389914,-981.19,0.00045479,31]
[312405446,1705858389925,-500.0,0.00045479,31]
[312405447,1705858389935,-827.44,0.00045479,31]
[312405448,1705858389945,-10855.62,0.00045479,31]
[312405449,1705858389954,-1200.56,0.00045479,31]
[312405450,1705858389964,-1017.46,0.00045479,31]
[312405451,1705858389974,-500.0,0.00045479,31]
[312405452,1705858389983,-1165.13,0.000455,60]
[312405453,1705858389993,-566.66,0.000455,45]
[312405454,1705858390002,-1751.85011533,0.000455,120]
[312405455,1705858390011,-4559.14247544,0.00045546,14]
[312405456,1705858390021,-2270.41904548,0.00045546,14]
[312405457,1705858390031,-3107.7026273,0.00045546,14]
[312405458,1705858390040,-3452.27253791,0.00045546,14]
[312405459,1705858390049,-2731.20362266,0.00045546,14]
[312405460,1705858390058,-500.0,0.00045556,5]
[312405461,1705858390068,-150.0,0.00045589,10]
[312405462,1705858390078,-152.7576,0.000456,30]
[312405463,1705858390088,-152.0,0.00045602,8]
[312405464,1705858390099,-443.84,0.00045673,2]
[312405465,1705858390109,-156.0,0.000457,30]
[312405466,1705858390118,-597.66,0.00045753,30]
[312405467,1705858390127,-500.0,0.000458,2]
[312405468,1705858390138,-152.7576,0.000458,30]
[312405469,1705858390147,-36435.77094047,0.000458,30]
[312405470,1705858390157,-547.19073929,0.0004588,100]
[312405471,1705858390166,-379.95,0.000459,2]
[312405472,1705858390176,-380.0,0.000459,2]
[312405473,1705858390185,-380.0,0.000459,2]
[312405474,1705858390195,-380.0,0.000459,2]
[312405475,1705858390204,-380.0,0.000459,2]
[312405476,1705858390214,-380.0,0.000459,2]
[312405477,1705858390224,-380.0,0.000459,2]
[312405478,1705858390235,-380.0,0.000459,2]
[312405479,1705858390244,-295.74,0.000459,2]
[312405480,1705858390254,-3202.92687653,0.000459,30]
[312405481,1705858390264,-5477.24480919,0.000459,30]
[312405482,1705858391341,-487.53822448,0.00041095,31]
[312405483,1705858391488,-470.69889728,0.00035347,2]
[312405484,1705858392349,-150.0,0.00032093,7]
[312405485,1705858392360,-29.30110272,0.00035347,2]
[312405486,1705858392370,-190.66,0.00035347,7]
[312405487,1705858392380,-500.0,0.00035347,2]
[312405488,1705858392390,-19.28104798,0.00035347,2]
[312405489,1705858392667,-443.931316,0.00035347,2]
[312405490,1705858393694,-280.4792481,0.00022769,2]
[312405491,1705858393708,-421.20614068,0.00022898,2]
[312405492,1705858393718,-198.80012136,0.000229,2]
[312405493,1705858393729,-384.44504338,0.00022998,2]
[312405494,1705858393738,-46.86339448,0.00022999,2]
[312405502,1705859375893,16000.0,0.00018695,2]
[312405510,1705859438254,-867.65374985,0.00019999,2]
[312405511,1705859438263,-846.63794469,0.0002,2]
[312405512,1705859438274,-263.3506829,0.00021849,2]
[312405513,1705859438283,-500.0,0.000219,2]
[312405514,1705859438293,-9232.99258662,0.00021909,2]
[312405515,1705859438302,-5000.0,0.00021909,2]
[312405516,1705859438311,-5000.0,0.00021909,2]
[312405517,1705859438321,-1250.0,0.00022,3]
[312405518,1705859438331,-240.5545293,0.00022207,2]
[312405519,1705859438340,-1508.09251334,0.00022307,2]